fUST/lending_fUST_20240625
["ID","MTS","AMOUNT","RATE_DAILY","PERIOD"]
[330341592,1719265842284,-500.0,0.00016438,2]
[330341593,1719265842294,-500.0,0.00016438,2]
[330341594,1719265842303,-500.0,0.00016438,2]
[330341595,1719265842312,-500.0,0.00016438,2]
[330341596,1719265842322,-500.0,0.00016438,2]
[330341597,1719265842332,-500.0,0.00016438,2]
[330341598,1719265842341,-500.0,0.00016438,2]
[330341599,1719265842351,-500.0,0.00016438,2]
[330341600,1719265842361,-500.0,0.00016438,2]
[330341601,1719265842370,-509.49120941,0.00016438,2]
[330341602,1719265842380,-669.94,0.00016438,2]
[330341603,1719265842391,-500.0,0.00016438,2]
[330341604,1719265842400,-500.0,0.00016438,2]
[330341605,1719265842410,-1225.36,0.00016438,2]
[330341606,1719265842420,-883.34,0.00016438,2]
[330341607,1719265842430,-500.0,0.00016438,2]
[330341608,1719265842439,-500.0,0.00016438,2]
[330341609,1719265842449,-500.0,0.00016438,2]
[330341610,1719265842460,-500.0,0.00016438,2]
[330341611,1719265842470,-500.0,0.00016438,2]
[330341612,1719265842480,-500.0,0.00016438,2]
[330341613,1719265842489,-500.0,0.00016438,2]
[330341614,1719265842499,-500.0,0.00016438,2]
[330341615,1719265842508,-500.0,0.00016438,2]
[330341616,1719265842518,-918.92,0.00016438,2]
[330341617,1719265842529,-500.0,0.00016438,2]
[330341618,1719265842539,-500.0,0.00016438,2]
[330341619,1719265842548,-500.0,0.00016438,2]
[330341620,1719265842557,-500.0,0.00016438,2]
[330341621,1719265842567,-500.0,0.00016438,2]
[330341622,1719265842576,-1666.23,0.00016438,2]
[330341623,1719265842586,-500.0,0.00016438,2]
[330341624,1719265842596,-500.0,0.00016438,2]
[330341625,1719265842606,-4720.64,0.00016438,2]
[330341626,1719265842615,-500.0,0.00016438,2]
[330341627,1719265842625,-423.64866362,0.00016438,2]
[330341628,1719265842634,-500.0,0.00016438,2]
[330341629,1719265842644,-500.0,0.00016438,2]
[330341630,1719265842653,-726.84,0.00016438,2]
[330341631,1719265842663,-500.0,0.00016438,2]
[330341632,1719265842673,-500.0,0.00016438,2]
[330341633,1719265842682,-1367.25107706,0.00016438,2]
[330341634,1719265842695,-492.64892294,0.00016438,2]
[330341635,1719265842705,-500.0,0.00016438,2]
[330341636,1719265842714,-433.5240269,0.00016438,2]
[330341637,1719265842724,-621.76,0.00016438,2]
[330341638,1719265842733,-2620.67,0.00016438,2]
[330341639,1719265842743,-548.18,0.00016438,2]
[330341640,1719265842752,-23.15313725,0.00016438,2]
[330341646,1719265844691,-476.84686275,0.00016438,2]
[330341649,1719265844701,-500.0,0.00016438,2]
[330341651,1719265844711,-638.48305745,0.00016438,2]
[330341653,1719265844721,-500.0,0.00016438,2]
[330341655,1719265844730,-323.93403992,0.00016438,2]
[330341656,1719265844739,-161.81078844,0.00016438,2]
[330341674,1719266177164,157.894736,0.00013699,2]
[330341679,1719266752807,157.894736,0.00013699,2]
[330341722,1719267032491,-4026.74481855,0.00014176,2]
[330341724,1719267032501,-300.0,0.00014679,2]
[330341725,1719267032511,-20340.13096374,0.0001468,2]
[330341733,1719267039634,-4419.97921541,0.0001468,2]
[330341749,1719267040410,-9017.4,0.00014679,2]
[330341826,1719267048746,-1735.6568777,0.00014679,2]
[330341827,1719267359421,157.894736,0.00013699,2]
[330341864,1719267569074,154.89931544,9.999e-05,2]
[330341865,1719267583987,154.89931544,9.999e-05,2]
[330341866,1719267591063,154.93932753,9.999e-05,2]
[330341890,1719268106790,157.894736,0.00013699,2]
[330341948,1719268234176,-5278.8466527,0.00014429,2]
[330341949,1719268234187,-18156.72120377,0.00014793,2]
[330341950,1719268234201,-1893.09798603,0.00014793,2]
[330341952,1719268234211,-400.97325317,0.00014941,2]
[330341954,1719268234222,-7646.63227042,0.00015034,2]
[330341956,1719268234236,-3700.78281547,0.00015034,2]
[330341958,1719268234247,-1047.29636137,0.00015034,2]
[330341960,1719268234258,-206.16607887,0.00015034,2]
[330341961,1719268234269,-2825.49865465,0.00015035,2]
[330341962,1719268234279,-2520.15418585,0.00015035,2]
[330341963,1719268234292,-517.74740795,0.00015035,2]
[330341964,1719268234303,-916.22837838,0.00015036,2]
[330341965,1719268234314,-154.94537953,0.00015038,2]
[330341966,1719268234325,-153.0,0.00015455,2]
[330341967,1719268234335,-159.35965211,0.00015499,2]
[330341968,1719268234347,-153.0,0.000155,2]
[330341969,1719268234358,-153.0,0.000155,2]
[330341970,1719268234369,-1000.0,0.000155,2]
[330341971,1719268234380,-1000.0,0.00016,2]
[330341972,1719268234391,-154.89931544,0.00016097,2]
[330341973,1719268234402,-8260.33665227,0.00016098,2]
[330341991,1719268241028,-346.5,0.00016098,2]
[330342030,1719268246599,-261.81,0.00016098,2]
[330342032,1719268246611,-282.5,0.00016098,2]
[330342033,1719268247018,-4365.01011654,0.00016098,2]
[330342036,1719268370847,500.0,0.00026,120]
[330342037,1719268382708,500.0,0.00026,120]
[330342038,1719268393189,500.0,0.00026,120]
[330342039,1719268408096,500.0,0.00026,120]
[330342040,1719268443654,673.38,0.00026,120]
[330342045,1719268483662,500.0,0.00026,120]
[330342046,1719268492533,500.0,0.00026,120]
[330342047,1719268506880,500.0,0.00026,120]
[330342048,1719268529117,348.617,0.00026,120]
[330342053,1719268638775,157.894736,0.00013699,2]
[330342069,1719269288190,157.894736,0.00013699,2]
[330342146,1719269441792,-848.98499647,0.00015077,2]
[330342147,1719269441801,-169.58170555,0.00015119,2]
[330342176,1719269444688,-392.1959995,0.00015119,2]
[330342177,1719269444777,-74.23401575,0.00015119,2]
[330342178,1719269444787,-5278.8466527,0.00015888,2]
[330342179,1719269444797,-620.00012924,0.00015894,2]
[330342180,1719269444806,-0.34382083,0.00015993,2]
[330342204,1719269447174,-13859.65592146,0.00015993,2]
[330342206,1719269447184,-702.95848849,0.00016,2]
[330342207,1719269447194,-30000.0,0.00016085,2]
[330342208,1719269447204,-155.45967456,0.00016273,2]
[330342209,1719269447213,-153.0,0.000163,2]
[330342210,1719269447223,-276.08930439,0.000165,2]
[330342211,1719269447233,-1979.248654,0.000165,2]
[330342212,1719269447243,-620.00000646,0.00016689,2]
[330342213,1719269447253,-394.80475809,0.000169,2]
[330342214,1719269447263,-154.55583014,0.000169,2]
[330342215,1719269447273,-70000.0,0.00017,2]
[330342216,1719269447283,-151.0,0.00017,2]
[330342217,1719269447292,-151.0,0.00017,2]
[330342218,1719269447301,-151.0,0.00017,2]
[330342219,1719269447311,-151.0,0.00017,2]
[330342220,1719269447322,-151.0,0.00017,2]
[330342221,1719269447332,-151.0,0.00017,2]
[330342222,1719269447342,-151.0,0.00017,2]
[330342223,1719269447353,-151.0,0.00017,2]
[330342224,1719269447363,-151.0,0.00017,2]
[330342225,1719269447373,-152.132134,0.00017,2]
[330342226,1719269447383,-151.0,0.00017,2]
[330342227,1719269447392,-151.0,0.00017,2]
[330342228,1719269447407,-151.0,0.00017,2]
[330342229,1719269447418,-151.0,0.00017,2]
[330342230,1719269447427,-151.0,0.00017,2]
[330342231,1719269447437,-151.0,0.00017,2]
[330342232,1719269447447,-151.0,0.00017,2]
[330342233,1719269447457,-153.834644,0.00017,2]
[330342234,1719269447467,-289.981337,0.00017,2]
[330342235,1719269447478,-289.981337,0.00017,2]
[330342236,1719269447488,-289.981337,0.00017,2]
[330342237,1719269447498,-289.981337,0.00017,2]
[330342238,1719269447508,-289.981337,0.00017,2]
[330342239,1719269447517,-289.981337,0.00017,2]
[330342240,1719269447527,-151.0,0.00017,2]
[330342241,1719269447537,-151.0,0.00017,2]
[330342242,1719269447546,-151.0,0.00017,2]
[330342243,1719269447556,-151.0,0.00017,2]
[330342244,1719269447566,-151.0,0.00017,2]
[330342245,1719269447577,-151.0,0.00017,2]
[330342246,1719269447587,-151.0,0.00017,2]
[330342247,1719269447597,-151.0,0.00017,2]
[330342248,1719269447606,-151.0,0.00017,2]
[330342249,1719269447615,-151.0,0.00017,2]
[330342250,1719269447625,-1000.0,0.00017,2]
[330342251,1719269447634,-1000.0,0.00017,2]
[330342252,1719269447643,-1000.0,0.00017,2]
[330342253,1719269447653,-1000.0,0.00017,2]
[330342254,1719269447662,-1000.0,0.00017,2]
[330342255,1719269447671,-1000.0,0.00017,2]
[330342256,1719269447681,-1000.0,0.00017,2]
[330342257,1719269447690,-1000.0,0.00017,2]
[330342258,1719269447699,-1000.0,0.00017,2]
[330342259,1719269447708,-1000.0,0.00017,2]
[330342260,1719269447719,-1000.0,0.00017,2]
[330342261,1719269447728,-1000.0,0.00017,2]
[330342262,1719269447738,-1000.0,0.00017,2]
[330342263,1719269447747,-1000.0,0.00017,2]
[330342264,1719269447757,-1000.0,0.00017,2]
[330342265,1719269447767,-1000.0,0.00017,2]
[330342266,1719269447776,-1000.0,0.00017,2]
[330342267,1719269447786,-1000.0,0.00017,2]
[330342268,1719269447795,-1000.0,0.00017,2]
[330342269,1719269447805,-1000.0,0.00017,2]
[330342270,1719269447815,-1000.0,0.00017,2]
[330342271,1719269447828,-1000.0,0.00017,2]
[330342272,1719269447837,-1000.0,0.00017,2]
[330342273,1719269447846,-1000.0,0.00017,2]
[330342274,1719269447856,-1000.0,0.00017,2]
[330342275,1719269447866,-1000.0,0.00017,2]
[330342276,1719269448020,-1000.0,0.00017,2]
[330342277,1719269448030,-151.0,0.00017,2]
[330342278,1719269448039,-151.0,0.00017,2]
[330342279,1719269448049,-151.0,0.00017,2]
[330342280,1719269448059,-1000.0,0.00017,2]
[330342281,1719269448070,-1000.0,0.00017,2]
[330342282,1719269448080,-1000.0,0.00017,2]
[330342283,1719269448089,-1000.0,0.00017,2]
[330342284,1719269448099,-1000.0,0.00017,2]
[330342285,1719269448109,-1000.0,0.00017,2]
[330342286,1719269448120,-1000.0,0.00017,2]
[330342287,1719269448129,-1000.0,0.00017,2]
[330342288,1719269448139,-1000.0,0.00017,2]
[330342289,1719269448148,-1000.0,0.00017,2]
[330342290,1719269448158,-1000.0,0.00017,2]
[330342291,1719269448167,-1000.0,0.00017,2]
[330342292,1719269448176,-1000.0,0.00017,2]
[330342293,1719269448186,-1000.0,0.00017,2]
[330342294,1719269448195,-1000.0,0.00017,2]
[330342295,1719269448205,-1000.0,0.00017,2]
[330342296,1719269448215,-1000.0,0.00017,2]
[330342297,1719269448224,-1000.0,0.00017,2]
[330342298,1719269448234,-1000.0,0.00017,2]
[330342299,1719269448244,-1000.0,0.00017,2]
[330342300,1719269448253,-1000.0,0.00017,2]
[330342301,1719269448263,-1000.0,0.00017,2]
[330342302,1719269448272,-1000.0,0.00017,2]
[330342303,1719269448282,-1000.0,0.00017,2]
[330342304,1719269448291,-1000.0,0.00017,2]
[330342305,1719269448301,-1000.0,0.00017,2]
[330342306,1719269448311,-1000.0,0.00017,2]
[330342307,1719269448322,-1000.0,0.00017,2]
[330342308,1719269448331,-1000.0,0.00017,2]
[330342309,1719269448340,-1000.0,0.00017,2]
[330342310,1719269448350,-1000.0,0.00017,2]
[330342311,1719269448360,-1000.0,0.00017,2]
[330342312,1719269448370,-1000.0,0.00017,2]
[330342313,1719269448379,-1000.0,0.00017,2]
[330342314,1719269448389,-1000.0,0.00017,2]
[330342315,1719269448402,-1000.0,0.00017,2]
[330342316,1719269448412,-620.005935,0.00017,2]
[330342317,1719269448422,-151.0,0.00017,2]
[330342318,1719269448431,-151.0,0.00017,2]
[330342319,1719269448442,-151.0,0.00017,2]
[330342320,1719269448451,-173.068137,0.00017,2]
[330342321,1719269448460,-173.068137,0.00017,2]
[330342322,1719269448470,-173.068137,0.00017,2]
[330342323,1719269448481,-173.068137,0.00017,2]
[330342324,1719269448490,-173.068137,0.00017,2]
[330342325,1719269448499,-173.068137,0.00017,2]
[330342326,1719269448508,-1000.0,0.00017,2]
[330342327,1719269448517,-151.0,0.00017,2]
[330342328,1719269448526,-151.0,0.00017,2]
[330342329,1719269448535,-151.0,0.00017,2]
[330342330,1719269448544,-151.0,0.00017,2]
[330342331,1719269448554,-151.0,0.00017,2]
[330342332,1719269448563,-151.0,0.00017,2]
[330342333,1719269448573,-151.0,0.00017,2]
[330342334,1719269448583,-164.829,0.00017077,2]
[330342335,1719269448592,-876.0,0.00017077,2]
[330342336,1719269448602,-65632.50134325,0.000172,2]
[330342337,1719269448611,-151.0,0.000172,2]
[330342338,1719269448621,-151.0,0.000172,2]
[330342339,1719269448630,-151.0,0.000172,2]
[330342340,1719269448639,-151.0,0.000172,2]
[330342341,1719269448649,-151.0,0.000172,2]
[330342342,1719269448658,-151.0,0.000172,2]
[330342343,1719269448667,-289.981337,0.000172,2]
[330342344,1719269448676,-289.981337,0.000172,2]
[330342345,1719269448686,-151.0,0.000172,2]
[330342346,1719269448696,-151.0,0.000172,2]
[330342347,1719269448705,-151.0,0.000172,2]
[330342348,1719269448714,-151.0,0.000172,2]
[330342349,1719269448723,-151.0,0.000172,2]
[330342350,1719269448733,-151.0,0.000172,2]
[330342351,1719269448742,-151.0,0.000172,2]
[330342352,1719269448752,-151.0,0.000172,2]
[330342353,1719269448761,-173.068137,0.000172,2]
[330342354,1719269448771,-173.068137,0.000172,2]
[330342355,1719269448780,-151.0,0.000172,2]
[330342356,1719269448789,-227.158801,0.000172,2]
[330342357,1719269448798,-1000.0,0.000175,2]
[330342358,1719269448808,-620.00000032,0.00017524,2]
[330342359,1719269448817,-491.33508365,0.00017567,2]
[330342360,1719269448828,-154.55583012,0.0001785,2]
[330342361,1719269448837,-151.0,0.00017982,2]
[330342362,1719269448846,-154.96125969,0.00018,2]
[330342363,1719269448856,-811.14465118,0.00018,2]
[330342364,1719269448866,-1585.26047478,0.00018,2]
[330342365,1719269448876,-154.94576898,0.00018,2]
[330342366,1719269448885,-1128.0,0.00018,2]
[330342367,1719269448895,-5926.19523831,0.00018,2]
[330342368,1719269448904,-242.84775224,0.00018,2]
[330342369,1719269448913,-151.0,0.00018,2]
[330342370,1719269448923,-151.0,0.00018,2]
[330342371,1719269448931,-151.0,0.00018,2]
[330342372,1719269448941,-289.981337,0.00018,2]
[330342373,1719269448950,-289.981337,0.00018,2]
[330342374,1719269448960,-151.0,0.00018,2]
[330342375,1719269448969,-151.0,0.00018,2]
[330342376,1719269448979,-151.0,0.00018,2]
[330342377,1719269448988,-151.0,0.00018,2]
[330342378,1719269448998,-151.0,0.00018,2]
[330342379,1719269449007,-151.0,0.00018,2]
[330342380,1719269449016,-151.0,0.00018,2]
[330342381,1719269449026,-265.804679,0.00018,2]
[330342382,1719269449036,-173.068137,0.00018,2]
[330342383,1719269449046,-173.068137,0.00018,2]
[330342384,1719269449056,-1000.0,0.00018,2]
[330342385,1719269449066,-151.0,0.00018,2]
[330342386,1719269449077,-620.00000002,0.000184,2]
[330342387,1719269449087,-223.97042868,0.00018445,2]
[330342388,1719269449096,-1000.0,0.000185,2]
[330342389,1719269449106,-1441.776,0.000186,2]
[330342390,1719269449117,-151.0,0.000186,2]
[330342391,1719269449127,-151.0,0.00018687,2]
[330342392,1719269449136,-88888.0,0.000187,2]
[330342393,1719269449146,-151.0,0.000188,2]
[330342394,1719269449155,-151.0,0.000188,2]
[330342395,1719269449165,-216.109453,0.000188,2]
[330342396,1719269449175,-289.981337,0.000188,2]
[330342397,1719269449185,-289.981337,0.000188,2]
[330342398,1719269449194,-151.0,0.000188,2]
[330342399,1719269449204,-151.0,0.000188,2]
[330342400,1719269449213,-151.0,0.000188,2]
[330342401,1719269449223,-151.0,0.000188,2]
[330342402,1719269449232,-209.6506,0.000188,2]
[330342403,1719269449242,-151.0,0.000188,2]
[330342404,1719269449251,-151.0,0.000188,2]
[330342405,1719269449261,-173.068137,0.000188,2]
[330342406,1719269449270,-173.068137,0.000188,2]
[330342407,1719269449279,-154.55583012,0.000188,2]
[330342408,1719269449289,-151.0,0.000188,2]
[330342409,1719269449298,-151.0,0.000189,2]
[330342410,1719269449307,-151.0,0.000189,2]
[330342411,1719269449317,-151.0,0.000189,2]
[330342412,1719269449326,-289.981337,0.000189,2]
[330342413,1719269449335,-289.981337,0.000189,2]
[330342414,1719269449344,-289.981337,0.000189,2]
[330342415,1719269449354,-289.981337,0.000189,2]
[330342416,1719269449363,-175.764658,0.000189,2]
[330342417,1719269449372,-151.0,0.000189,2]
[330342418,1719269449382,-151.0,0.000189,2]
[330342419,1719269449392,-192.485472,0.000189,2]
[330342420,1719269449406,-151.0,0.000189,2]
[330342421,1719269449415,-151.0,0.000189,2]
[330342422,1719269449424,-261.434097,0.000189,2]
[330342423,1719269449434,-576242.99845164,0.000189,2]
[330342424,1719269449450,-918.64713147,0.000189,2]
[330342425,1719269449461,-1721.2999999,0.000189,2]
[330342426,1719269449472,-729.45195571,0.000189,2]
[330342427,1719269592722,3000.0,0.000225,30]
[330342428,1719269823473,157.894736,0.00013699,2]
[330342429,1719269997083,945.66587213,9.999e-05,2]
[330342431,1719270194825,3000.0,0.000225,30]
[330342434,1719270358868,191.48945737,9.999e-05,2]
[330342435,1719270380708,157.894736,0.00013699,2]
[330342451,1719270633734,-439.41199672,0.00014005,2]
[330342452,1719270633746,-18430.70908746,0.00016061,2]
[330342471,1719270639948,-11569.29091254,0.00016061,2]
[330342473,1719270639958,-250.47852407,0.000169,2]
[330342475,1719270639968,-876.0,0.00017001,2]
[330342477,1719270639978,-150.0,0.00017357,2]
[330342479,1719270639988,-276.08930439,0.00017533,2]
[330342481,1719270639997,-154.88383712,0.00018,2]
[330342482,1719270640008,-811.14465118,0.00018,2]
[330342484,1719270640018,-154.88383712,0.00018,2]
[330342486,1719270640028,-825.92070736,0.00018,2]
[330342488,1719270640038,-5926.19523831,0.00018,2]
[330342490,1719270640047,-242.84775224,0.00018,2]
[330342492,1719270640057,-153.0,0.00018493,2]
[330342494,1719270640067,-153.0,0.00018493,2]
[330342496,1719270640077,-153.0,0.00018493,2]
[330342498,1719270640087,-5278.8466527,0.00018597,2]
[330342500,1719270640097,-180.0,0.000189,2]
[330342501,1719270640107,-70848.7497735,0.000189,2]
[330342502,1719270640117,-41394.01171914,0.000189,2]
[330342507,1719270641748,-707.07569986,0.000189,2]
[330342509,1719270641759,-21907.2380697,0.000189,2]
[330342544,1719270756296,406.0295577,0.00022909,120]
[330342545,1719270761251,406.0295577,0.00022909,120]
[330342546,1719270796873,3000.0,0.000225,30]
[330342547,1719270942077,157.894736,0.00013699,2]
[330342549,1719271395435,3000.0,0.000225,30]
[330342550,1719271460415,157.894736,0.00013699,2]
[330342568,1719271832414,-4026.74481855,0.00014679,2]
[330342569,1719271832424,-300.0,0.00016057,2]
[330342570,1719271832436,-16649.63427621,0.00016058,2]
[330342576,1719271839988,-3690.49668749,0.00016058,2]
[330342579,1719271839999,-30000.0,0.00016061,2]
[330342581,1719271840009,-876.0,0.00017521,2]
[330342583,1719271840019,-620.0,0.00018354,2]
[330342584,1719271840030,-5926.19523831,0.0001844,2]
[330342585,1719271840041,-811.14465118,0.00018441,2]
[330342586,1719271840051,-825.92070736,0.00018452,2]
[330342587,1719271840061,-154.86836189,0.00018452,2]
[330342588,1719271840071,-3235.23734999,0.00018486,2]
[330342589,1719271840082,-154.86836189,0.00018488,2]
[330342590,1719271840092,-242.84775224,0.00018532,2]
[330342591,1719271840103,-7984.81773895,0.000187,2]
[330342592,1719271840113,-88888.0,0.000188,2]
[330342593,1719271840124,-202.43925288,0.000188,2]
[330342594,1719271840134,-248.34856902,0.000188,2]
[330342595,1719271840144,-184.65236217,0.00018802,2]
[330342596,1719271840155,-202.43925288,0.00018803,2]
[330342597,1719271840165,-185466.05917551,0.000189,2]
[330342624,1719271846524,-276.08930439,0.0001844,2]
[330342625,1719271846535,-448.84323545,0.000189,2]
[330342630,1719271847056,-60249.014002,0.000189,2]
[330342631,1719271996114,3000.0,0.000225,30]
[330342632,1719272103360,157.894736,0.00013699,2]
[330342639,1719272593882,3000.0,0.000225,30]
[330342640,1719272699918,157.894736,0.00013699,2]
[330343118,1719273194556,3000.0,0.000225,30]
[330343119,1719273294595,157.894736,0.00013699,2]
[330343124,1719273795327,3000.0,0.000225,30]
[330343130,1719274103183,6856.0,0.000259,120]
[330343131,1719274112363,2186.71524175,0.0001,2]
[330343132,1719274131752,-720.36937759,0.00014001,2]
[330343133,1719274131798,-720.36937759,0.00014001,2]
[330343134,1719274131852,-720.36937759,0.00014001,2]
[330343135,1719274131910,-220.79374487,0.00014001,2]
[330343205,1719274238366,-641.71806595,0.00014001,2]
[330343206,1719274238379,-150.92599179,0.00014001,2]
[330343207,1719274238389,-290.97133197,0.00015061,2]
[330343244,1719274240677,-13877.53378265,0.00015061,2]
[330343246,1719274240687,-583.07815696,0.0001606,2]
[330343248,1719274240697,-18704.66901013,0.00016061,2]
[330343291,1719274243544,-1860.64580897,0.00016061,2]
[330343300,1719274394274,3000.0,0.000225,30]
[330343322,1719274994952,4052.870984,0.000225,30]
[330343370,1719275354529,300.0,0.00025989,120]
[330343371,1719275365349,300.0,0.00025989,120]
[330343372,1719275375728,300.0,0.00025989,120]
[330343373,1719275384944,300.0,0.00025989,120]
[330343374,1719275387897,300.0,0.00025989,120]
[330343375,1719275402885,162.4747,0.00025989,120]
[330343404,1719275438506,-276.12022579,0.00014003,2]
[330343405,1719275438517,-80.81857116,0.00014005,2]
[330343433,1719275442122,-492.42429545,0.00014005,2]
[330343434,1719275442132,-329.48964541,0.00014036,2]
[330343435,1719275442142,-9434.6851809,0.00016061,2]
[330343436,1719275442151,-876.0,0.0001762,2]
[330343437,1719275442160,-1205.54859605,0.00017807,2]
[330343438,1719275442169,-811.14465118,0.00018334,2]
[330343439,1719275442178,-242.84775224,0.00018335,2]
[330343440,1719275442188,-300.50857073,0.00018336,2]
[330343441,1719275442200,-811.14465118,0.00018338,2]
[330343442,1719275442209,-825.92070736,0.00018338,2]
[330343443,1719275442219,-5926.19523831,0.00018339,2]
[330343444,1719275442231,-276.08930439,0.00018339,2]
[330343445,1719275442241,-5926.19523831,0.00018339,2]
[330343446,1719275442250,-154.86836189,0.00018339,2]
[330343447,1719275442260,-160.0,0.00018485,3]
[330343448,1719275442269,-160.0,0.00018599,4]
[330343449,1719275442279,-160.0,0.00018712,5]
[330343450,1719275442288,-161.95140232,0.000188,2]
[330343451,1719275442297,-248.34856902,0.000188,2]
[330343452,1719275442306,-161.9514023,0.00018823,2]
[330343453,1719275442315,-160.0,0.00018826,6]
[330343454,1719275442325,-161.9514023,0.00018845,2]
[330343455,1719275442335,-161.9514023,0.00018868,2]
[330343456,1719275442345,-1278.0,0.00018878,3]
[330343457,1719275442355,-161.9514023,0.0001889,2]
[330343458,1719275442364,-4336.37926354,0.0001889,2]
[330343606,1719275443638,-30595.15221006,0.0001889,2]
[330343608,1719275443647,-48242.50576837,0.000189,2]
[330343610,1719275443656,-199754.432218,0.000189,2]
[330343612,1719275443666,-491.33508365,0.00018903,2]
[330343614,1719275443675,-924.72,0.00018904,2]
[330343616,1719275443685,-160.0,0.0001894,7]
[330343618,1719275443695,-151.0,0.0001899,2]
[330343620,1719275443704,-232.075312,0.0001899,2]
[330343622,1719275443714,-265279.50083794,0.0001899,2]
[330343735,1719275594009,150.0,0.000225,30]
[330343801,1719276638030,-356.93879695,0.00016,2]
[330343803,1719276638040,-1187.1950895,0.00016117,2]
[330343808,1719276638114,-1000.20959833,0.00016117,2]
[330343809,1719276638126,-27812.59531217,0.00016117,2]
[330343810,1719276638136,-300.0,0.00016144,2]
[330343811,1719276638146,-16649.6342762,0.00016342,2]
[330343812,1719276638156,-290.55887209,0.00016681,2]
[330343813,1719276638166,-876.0,0.00017739,2]
[330343814,1719276638177,-5926.19523831,0.0001819,2]
[330343815,1719276638188,-825.92070736,0.00018191,2]
[330343816,1719276638198,-811.14465118,0.00018191,2]
[330343817,1719276638209,-235.3026276,0.00018191,2]
[330343818,1719276638219,-211.29449771,0.00018192,2]
[330343820,1719276638228,-182.46691096,0.00018197,2]
[330343822,1719276638239,-242.84775224,0.00018198,2]
[330343824,1719276638249,-184.65236217,0.00018198,2]
[330343826,1719276638259,-3264.11396817,0.00018799,2]
[330343827,1719276638271,-762.63085038,0.00018799,2]
[330343828,1719276638281,-158.23409005,0.000188,2]
[330343829,1719276638290,-3733.05060842,0.000188,2]
[330343830,1719276638299,-948.68317705,0.0001889,2]
[330343831,1719276638309,-3516.66046472,0.000189,2]
[330343832,1719276638321,-2838.11,0.000189,2]
[330344141,1719276643037,-7861.20459803,0.000189,2]
[330344142,1719276643047,-529508.206696,0.0001899,2]
[330344143,1719276643056,-1008.50572558,0.00019,2]
[330344144,1719276643066,-154.91491942,0.00019,2]
[330344145,1719276643075,-14254.52479643,0.00019,7]
[330344261,1719277833041,-300.0,0.0001606,2]
[330344263,1719277833051,-30000.0,0.00016061,2]
[330344265,1719277833059,-2824.23165146,0.00016097,2]
[330344267,1719277833068,-238.354229,0.00017432,2]
[330344270,1719277833078,-876.0,0.0001774,2]
[330344272,1719277833088,-825.92070736,0.00018,2]
[330344274,1719277833098,-242.84775224,0.00018,2]
[330344275,1719277833107,-811.14465118,0.00018,2]
[330344277,1719277833116,-4972.51637511,0.00018,2]
[330344280,1719277833129,-569.0,0.00018,2]
[330344359,1719277838267,-384.6788632,0.00018,2]
[330344360,1719277838278,-151.0,0.00018809,2]
[330344361,1719277838289,-161.47940905,0.00018889,2]
[330344362,1719277838299,-206.30386512,0.0001889,2]
[330344364,1719277838308,-9477.3167085,0.000189,2]